Cogmind - Beta 15 @@@ ROGUE MODE // 2025.07.19 @ 18:36:49 Player: Wall-e Result: Destroyed by V2-2QI(R) with Subdweller Laser Performance ------------- Evolutions (0) 0 Regions Visited (3) 600 Robots Destroyed (33) 165 Value Destroyed (800) 800 Prototype IDs (11) 220 Alien Tech Used (0) 0 Bonus (0) 0 TOTAL SCORE: 1785 Bonus ------- None Cogmind --------- Core Integrity 0/250 Matter 290/300 Energy 248/250 System Corruption 3% Temperature Cool (7) Movement Treading (320) Ox2 Location -10/Subcaves Parts ------- > --- POWER (1) -------- Ion Engine > --- PROPULSION (2) --- Light Treads > --- UTILITY (2) ------ Large Storage Unit Large Storage Unit > --- WEAPON (2) ------- Mining Claw Makeshift Spear > --- INVENTORY (15) --- Light Nuclear Core Meta Core Huge Storage Unit Huge Storage Unit Core Shielding Light Armor Plating Hacking Suite EM Pulse Gun Heavy Assault Rifle Heavy Assault Rifle Light Cannon Grenade Launcher Rocket Launcher Datajack Peak State ------------ > --- POWER ------------ Ion Engine > --- PROPULSION ------- Wheel Subdweller Monowheel > --- UTILITY ---------- Large Storage Unit Large Storage Unit > --- WEAPON ----------- Mining Claw Makeshift Spear > --- INVENTORY -------- Light Nuclear Core Meta Core Light Treads Huge Storage Unit Huge Storage Unit Core Shielding Light Armor Plating Hacking Suite EM Pulse Gun Heavy Assault Rifle Heavy Assault Rifle Light Cannon Grenade Launcher Rocket Launcher Datajack [Rating: 14] Favorites ----------- Power Ion Engine Engine Ion Engine Power Core Light Nuclear Core Propulsion Light Treads Treads Light Treads Wheel Wheel Utility Large Storage Unit Storage Large Storage Unit Protection Light Armor Plating Weapon Heavy Assault Rifle Energy Gun EM Pulse Gun Ballistic Gun Heavy Assault Rifle Ballistic Cannon Light Cannon Launcher Grenade Launcher Special Weapon Mining Laser Slashing Weapon Mining Claw Piercing Weapon Makeshift Spear Build | -11 -10 -10 -10 ------- Run | Yrd Mat Min Sub Slots Evolved . | . . . . Power . | . . . . Propulsion . | . . . . Utility . | . . . . Weapon . | . . . . Parts Attached 29 | 7 17 3 2 Power 4 | 1 2 1 . Engine 3 | 1 1 1 . Core 1 | . 1 . . Reactor . | . . . . Propulsion 7 | 2 4 . 1 Treads 4 | 2 2 . . Leg . | . . . . Wheel 3 | . 2 . 1 Hover . | . . . . Flight . | . . . . Utility 8 | 2 6 . . Device . | . . . . Storage 7 | 2 5 . . Processor . | . . . . Hackware . | . . . . Protection 1 | . 1 . . Artifact . | . . . . Weapon 10 | 2 5 2 1 Energy Gun 1 | 1 . . . Energy Cannon . | . . . . Ballistic Gun 4 | 1 3 . . Ballistic Cannon 1 | . . 1 . Launcher 1 | . . 1 . Special Weapon 1 | . 1 . . Impact Weapon . | . . . . Slashing Weapon 1 | . 1 . . Piercing Weapon 1 | . . . 1 Special Melee Weapon . | . . . . Unidentified Prototypes . | . . . . Parts Lost 4 | . 2 1 1 Power 1 | . . 1 . Propulsion 2 | . 1 . 1 Utility . | . . . . Weapon 1 | . 1 . . Highest Loss Streak 2 | . 2 1 1 To Critical Strikes . | . . . . Average Backups 12 | 2 12 13 14 Power . | . 1 . 1 Propulsion 1 | 1 1 1 . Utility 4 | . 4 5 5 Weapon 4 | . 4 5 6 Tool/Special . | . . . . Unused Backups 15 | . 8 . 7 Power 1 | . . . 1 Propulsion 2 | . 2 . . Utility 7 | . 5 . 2 Weapon 3 | . 1 . 2 Tool/Special 2 | . . . 2 Average Slot Usage (%) 95 | . 95 99 83 Engine 8 | . 5 13 14 Core 5 | . 8 . . Treads 17 | . 24 . . Wheel 8 | . 1 28 24 Storage 26 | . 25 28 28 Energy Gun 1 | . 2 . . Ballistic Gun 17 | . 22 4 . Ballistic Cannon 2 | . . 14 . Launcher 1 | . . 9 . Slashing Weapon 2 | . 1 . 10 Peak Build Rating 14 | 7 12 11 14 Average Rating 10 | 5 10 8 9 On Entrance 6 | . 7 11 9 Naked Turns . | . . . . Heaviest Build 171 | 16 171 51 49 Greatest Support 40 | 40 40 26 30 Greatest Overweight (x) 4 | . 4 1 4 Average Overweight (x) 1 | . 1 1 1 Largest Inventory Capacity 25 | 8 25 15 15 Average Capacity 15 | 6 15 15 15 Most Carried 15 | 5 15 15 15 Average Carried 12 | 2 12 14 14 Final Capacity 15 | 8 15 15 15 Final Carried 15 | 5 13 15 14 Class Distribution -------------------- 100% | Mutant Dominant Class ---------------- Mutant | -10/Materials Mutant | -10/Mines Mutant | -10/Subcaves Resources | -11 -10 -10 -10 ----------- Run | Yrd Mat Min Sub Matter Collected 1105 | 254 610 173 68 Remotely . | . . . . Salvage Created 1077 | 72 833 172 . Parts 73 | 4 51 18 . Haulers Intercepted 2 | . 2 . . Recyclers Shooed . | . . . . Parts Field Recycled . | . . . . Retrieved Matter . | . . . . Parts Self-Destructed . | . . . . Prevented . | . . . . Kills | -11 -10 -10 -10 ------- Run | Yrd Mat Min Sub Combat Hostiles Destroyed 23 | . 13 10 . Guns 15 | . 13 2 . Cannons 2 | . . 2 . AOE 6 | . . 6 . Classes Destroyed 7 | 1 5 1 . Worker 1 | . 1 . . Hauler 2 | . 2 . . Recycler 2 | 1 1 . . Operator 2 | . 2 . . Watcher 3 | . 3 . . Swarmer 6 | . . 6 . Grunt 17 | . 13 4 . Best Kill Streak 3 | 1 2 3 . Combat Bots Only 3 | . 2 3 . Max Kills in Single Turn 2 | 1 1 2 . Gunslinging . | . . . . Exploded 2 | . . 2 . Melee . | . . . . Uniques/NPCs Destroyed . | . . . . Combat | -11 -10 -10 -10 -------- Run | Yrd Mat Min Sub Hostile Shots Fired 114 | . 75 29 10 Missed 26 | . 16 9 1 Hits 88 | . 59 20 9 Projectile 88 | . 59 20 9 Damage Taken 1166 | . 710 218 238 Core 271 | . 143 34 94 Absorbed by Shields . | . . . . Regen/Repaired (Parts) 87 | . 87 . . Core Remaining (%) 100 | 100 . . . Volleys Fired 89 | 2 72 15 . Largest 2 | 2 2 2 . Hottest 100 | 60 100 60 . Shots Fired 165 | 4 130 31 . Gun 137 | 4 122 11 . Cannon 15 | . . 15 . Launcher 5 | . . 5 . Special 8 | . 8 . . Kinetic 147 | 2 119 26 . Thermal 8 | . 8 . . Explosive 5 | . . 5 . Electromagnetic 5 | 2 3 . . Robot Hit Streak 18 | 2 18 11 . Robot Miss Streak 5 | 1 4 5 . Penetration Max . | . . . . Secondary Targets 3 | . 3 . . Max Gunslinging Chain 1 | . 1 . . Shots Hit Robots 102 | 2 78 19 3 Core Hits 48 | 2 30 16 . Critical Kills 1 | . 1 . . Critical Parts Destroyed . | . . . . Critical Strikes 2 | . 1 1 . Destroy 1 | . 1 . . Blast 1 | . . 1 . Melee Attacks 8 | . 1 . 7 Impact . | . . . . Slashing 3 | . 1 . 2 Piercing 5 | . . . 5 Sneak Attacks . | . . . . Combat Hostiles . | . . . . Follow-up Attacks . | . . . . Damage Inflicted 1992 | 37 1224 644 87 Guns 1416 | 37 1224 155 . Cannons 142 | . . 142 . Explosions 347 | . . 347 . Melee 87 | . . . 87 Ramming . | . . . . Kinetic 1486 | 7 1182 297 . Thermal . | . . . . Explosive 347 | . . 347 . Electromagnetic 72 | 30 42 . . Impact . | . . . . Slashing . | . . . . Piercing 87 | . . . 87 Highest Corruption 3 | . 3 3 3 Average Corruption 2 | . 2 3 3 Corruption Purged . | . . . . Corruption Blocked . | . . . . Effects 36 | . 18 10 8 Message Errors 10 | . 5 3 2 Matter Fused 6 | . 3 3 . Heat Flow Errors 2 | . 1 . 1 Energy Discharges 2 | . 1 . 1 Parts Rejected 1 | . 1 . . Parts Fused 1 | . 1 . . Data Loss (minor) 5 | . 3 . 2 Data Loss (major) 5 | . 2 1 2 Misfires 3 | . . 3 . Alerts 1 | . 1 . . Overload Shots . | . . . . Overflow Damage 18 | . . 18 . Projectiles . | . . . . Explosions 18 | . . 18 . Melee . | . . . . Knockbacks 2 | . . 2 . Impact . | . . . . Kinetic 2 | . . 2 . Secondary . | . . . . Self-Inflicted Damage . | . . . . Shots . | . . . . Rammed . | . . . . Targets Rammed . | . . . . Kicked . | . . . . Crushed . | . . . . Highest Temperature 236 | 20 208 9 236 Average Temperature 26 | 12 24 4 136 Received Heat Transfer 531 | . 393 78 60 Siege Activations . | . . . . Martial Activations . | . . . . Shielding Activations . | . . . . Robots Disrupted . | . . . . Combat Hostiles . | . . . . Robots Corrupted . | . . . . Combat Hostiles . | . . . . Parts Fried . | . . . . Impact Corruptions . | . . . . Robots Melted . | . . . . Combat Hostiles . | . . . . Parts Melted . | . . . . Heat Transferred . | . . . . Parts Sabotaged . | . . . . Parts Stolen . | . . . . Parts Stripped . | . . . . Power Chain Reactions . | . . . . Alert | -11 -10 -10 -10 ------- Run | Yrd Mat Min Sub Maximum Alert Level . | . . . . Low Security (%) 100 | 100 100 100 . Level 1 . | . . . . Level 2 . | . . . . Level 3 . | . . . . Level 4 . | . . . . Level 5 . | . . . . High Security . | . . . . Max Security . | . . . . Peak Influence 156 | 5 72 156 . Initial 9 | . . 9 . Average 29 | . 22 62 . Influence Increases 718 | 5 437 276 . Destroy 0b10 Robot/C 460 | . 260 200 . Destroy 0b10 Robot/NC 50 | 5 45 . . Destroy Leader 100 | . 60 40 . Successful Hack 37 | . 32 5 . Destroy Structure 26 | . 10 16 . Lose Combat Pursuer 45 | . 30 15 . Influence Decreases 718 | 5 412 301 . Entered New Map 16 | . . 16 . Time Decay 673 | 5 392 276 . Lost Part 29 | . 20 9 . Squads Dispatched 2 | . 2 . . Investigation . | . . . . Extermination . | . . . . Reinforcement 2 | . 2 . . Assault . | . . . . Garrison . | . . . . Intercept . | . . . . Searches Triggered . | . . . . Construction Impeded . | . . . . Haulers Reinforced . | . . . . Active Scanning Responses . | . . . . Cargo Convoy Interrupts . | . . . . Stealth | -11 -10 -10 -10 --------- Run | Yrd Mat Min Sub Distress Signals 3 | . 2 1 . Communications Jammed . | . . . . Distress Signals . | . . . . Times Spotted 43 | . 29 11 3 Peak Tracking Total 3 | . 3 3 3 Tactical Retreats 3 | . 2 1 . Traps | -11 -10 -10 -10 ------- Run | Yrd Mat Min Sub Traps Triggered 6 | . 5 . 1 Indirectly . | . . . . Trap Hack Attempts . | . . . . Triggered . | . . . . Disarmed . | . . . . Reprogrammed . | . . . . Reused . | . . . . Traps Extracted . | . . . . Installed 3 | . . 2 1 Triggered . | . . . . Most Traps Carried 2 | . . 2 . Machines | -11 -10 -10 -10 ---------- Run | Yrd Mat Min Sub Machines Disabled 1 | . . . 1 Max in Single Turn 1 | . . . 1 Machines Repaired . | . . . . Machines Dismantled . | . . . . Machines Sabotaged . | . . . . Overloaded Fab Kills . | . . . . Hacking | -11 -10 -10 -10 --------- Run | Yrd Mat Min Sub Machines Accessed 11 | . 9 1 1 Terminals 8 | . 7 1 . Fabricators . | . . . . Repair Stations 1 | . 1 . . Recycling Units 1 | . 1 . . Scanalyzers . | . . . . Garrison Access . | . . . . Total Hacks 40 | . 25 6 9 Successful 27 | . 14 4 9 Failed 13 | . 11 2 . Catastrophic 2 | . 2 . . Database Lockouts . | . . . . Manual 25 | . 20 5 . Terminals 27 | . 21 6 . Fabricators . | . . . . Repair Stations 2 | . 2 . . Recycling Units 2 | . 2 . . Scanalyzers . | . . . . Garrison Access . | . . . . Terminal Hacks 11 | . 1 1 9 Record 8 | . . . 8 Zone Layout 2 | . 1 1 . Proto ID Catalog 1 | . . . 1 Fabricator Hacks . | . . . . Repair Station Hacks 2 | . 2 . . Scan Component 1 | . 1 . . Repair 1 | . 1 . . Recycling Unit Hacks 1 | . 1 . . Retrieve Components 1 | . 1 . . Scanalyzer . | . . . . Garrison Access Hacks . | . . . . Unauthorized Hacks 13 | . 10 3 . Terminals 12 | . 9 3 . Track 2 | . 1 1 . Assimilate 1 | . 1 . . Botnet 8 | . 7 1 . Disrupt 1 | . . 1 . Fabricators . | . . . . Repair Stations . | . . . . Recycling Units 1 | . 1 . . Reject 1 | . 1 . . Scanalyzers . | . . . . Garrison Access . | . . . . Data Cores Recovered . | . . . . Used . | . . . . Hacking Detections 8 | . 7 1 . Full Trace Events . | . . . . Feedback Events . | . . . . Feedback Blocked . | . . . . Robot Schematics Acquired . | . . . . Robots Built . | . . . . Authchips . | . . . . Time . | . . . . Total Robot Build Rating . | . . . . Part Schematics Acquired . | . . . . Parts Built . | . . . . Authchips . | . . . . Time . | . . . . Total Part Build Rating . | . . . . Parts Repaired 1 | . 1 . . Time 32 | . 32 . . Parts Recycled . | . . . . Recycled Matter . | . . . . Retrieved Matter . | . . . . Retrieved Components 8 | . 8 . . Parts Scanalyzed . | . . . . Part Schematics Acquired . | . . . . Parts Damaged . | . . . . Bothacking | -11 -10 -10 -10 ------------ Run | Yrd Mat Min Sub Used RIF Installer . | . . . . Robots Hacked . | . . . . Non-combat . | . . . . Combat . | . . . . Robot Hacks Applied . | . . . . Relay Couplers Released . | . . . . Fabnet Peak Effective % . | . . . . Robots Rewired . | . . . . Allies Hacked . | . . . . Hacks Repelled . | . . . . Allies | -11 -10 -10 -10 -------- Run | Yrd Mat Min Sub Total Allies 1 | . . 1 . Largest Group 1 | . . 1 1 Highest-Rated Group 31 | . . 31 31 Highest-Rated Ally 31 | . . 31 31 Total Orders . | . . . . Ally Attacks . | . . . . Total Damage . | . . . . Kills . | . . . . Allies Corrupted . | . . . . Allies Melted . | . . . . Intel | -11 -10 -10 -10 ------- Run | Yrd Mat Min Sub Active Infowar (turns) . | . . . . Robot Analysis Total . | . . . . Derelict Logs Recovered 3 | . . 2 1 Drone Launches . | . . . . Drone Recoveries . | . . . . Exploration | -11 -10 -10 -10 ------------- Run | Yrd Mat Min Sub Turns Passed 4011 | 85 2862 621 443 Spaces Moved 2050 | 45 1104 534 367 Core 6 | 6 . . . Treads 942 | 39 899 . 4 Legs . | . . . . Wheels 1102 | . 205 534 363 Hover . | . . . . Flight . | . . . . Fastest Speed 50 | 50 105 105 105 Average Speed 168 | 145 218 105 113 Slowest Speed 480 | 160 480 105 320 Overloaded Moves . | . . . . Propulsion Burnouts . | . . . . Robots Hopped . | . . . . Potential Cave-ins . | . . . . Cave-ins Triggered . | . . . . Exploration Rate (%) 53 | 3 93 88 29 Regions Visited 3 Branch Regions 2 Pre-discovered Areas 2 | . . 2 . Known Exits Taken . | . . . . Unknown Exits Taken 3 | 1 1 1 . Scrap Searched 7 | . . 1 6 Spaces Dug 9 | . 9 . . Terrain Destroyed 34 | . 9 25 . Melee 1 | . 1 . . Projectile 8 | . 8 . . AOE 25 | . . 25 . Terrain Rammed . | . . . . Walls Destroyed . | . . . . Machines Disabled . | . . . . Actions | -11 -10 -10 -10 --------- Run | Yrd Mat Min Sub Total 2416 | 58 1403 566 389 Wait 171 | . 162 6 3 Move 2047 | 44 1103 533 367 Hop . | . . . . Pick Up 34 | 5 23 5 1 Fast Attach 15 | 7 6 . 2 Attach 7 | . 4 1 2 Detach 2 | . . . 2 Swap 16 | . 14 2 . Drop 24 | . 18 2 4 Fire 89 | 2 72 15 . Melee 8 | . 1 . 7 Ram . | . . . . Kick . | . . . . Crush . | . . . . Escape Stasis . | . . . . Rewire . | . . . . Trap 3 | . . 2 1 Miscellaneous . | . . . . Route ------- -11/Scrapyard -10/Materials (discovered 5 exits: [*Mat x2] / *Min x2 / *Sub) -10/Mines (discovered 3 exits: [*Mat x2] / *Sub) -10/Subcaves History --------- Turn | Location | Event 28 | -11/Scrapyard | Discovered new exit (range 16) 86 | -11/Scrapyard | Entered Materials 139 | -10/Materials | Discovered new exit (range 14) 301 | -10/Materials | Build established: Mutant 1031 | -10/Materials | Discovered new exit (range 6) 1413 | -10/Materials | Discovered new exit (range 3) 1927 | -10/Materials | Repaired Hvy. Assault Rifle 2034 | -10/Materials | Discovered new exit (range 16) 2309 | -10/Materials | Core integrity fell below 50% 2780 | -10/Materials | Discovered new exit (range 5) 2948 | -10/Materials | Entered Mines 3145 | -10/Mines | Found a hidden stash of uninstalled traps 3152 | -10/Mines | Learned location of Zion (-7) 3245 | -10/Mines | Discovered new exit (range 11) 3262 | -10/Mines | Discovered new exit (range 6) 3269 | -10/Mines | Received a Rocket Launcher from a helpful Derelict 3410 | -10/Mines | Received a Mining Laser from a helpful Derelict 3560 | -10/Mines | Discovered new exit (range 8) 3569 | -10/Mines | Entered Subcaves 3569 | -10/Subcaves | Accompanied by 1 ally 3649 | -10/Subcaves | Core integrity fell below 20% 3653 | -10/Subcaves | Visited 4L-MR0's lab 3668 | -10/Subcaves | Found Meta Core 3966 | -10/Subcaves | Learned location of 1 exit from Materials 3979 | -10/Subcaves | A Subdweller sparked back to life 4012 | -10/Subcaves | Destroyed by V2-2QI(R) with Subdweller Laser Last Messages --------------- 03899_ Found Mak. Spear. 03899_ Found 34 Matter. 03900_ Searching scrap... 03900_ Found Battle Cannon. 03900_ Found 55 Matter. 03904_ Acquired Mak. Spear. 03906_ Acquired 10 matter. 03910_ ZB-GAE(u) tweaks Twisted Machinery. 03915_ SC23ENI3 FZKJKH